Cogmind - Beta 15 @@@ ROGUE MODE // 2025.08.01 @ 17:41:16 Player: winnking222 Result: Destroyed by 0W-ZJH(R) with Subdweller Laser Performance ------------- Evolutions (0) 0 Regions Visited (2) 400 Robots Destroyed (22) 110 Value Destroyed (566) 566 Prototype IDs (15) 300 Alien Tech Used (0) 0 Bonus (0) 0 TOTAL SCORE: 1376 Bonus ------- None Cogmind --------- Core Integrity 0/250 Matter 121/300 Energy 92/100 System Corruption 0% Temperature Cool (6) Movement Rolling (95) Ox1 Location -10/Subcaves Parts ------- > --- POWER (1) -------- (None) > --- PROPULSION (2) --- Wheel > --- UTILITY (2) ------ Large Storage Unit > --- WEAPON (2) ------- (None) > --- INVENTORY (15) --- Improved Ion Engine Aluminum Leg Aluminum Leg Cooling System High-capacity Storage Unit Seismic Detector Gun Armor Assault Rifle Battle Rifle Peak State ------------ > --- POWER ------------ Improved Ion Engine > --- PROPULSION ------- Light Treads Light Treads > --- UTILITY ---------- Large Storage Unit Seismic Detector > --- WEAPON ----------- Light Cannon Light Cannon > --- INVENTORY -------- Improved Ion Engine Aluminum Leg Aluminum Leg Wheel Cooling System High-capacity Storage Unit Seismic Detector Seismic Detector Gun Armor Assault Rifle Assault Rifle Battle Rifle Light Cannon Light Cannon Light Cannon [Rating: 10] Favorites ----------- Power Improved Ion Engine Engine Improved Ion Engine Propulsion Light Treads Treads Light Treads Leg Aluminum Leg Wheel Wheel Utility Seismic Detector Device Seismic Detector Storage Large Storage Unit Weapon Assault Rifle Ballistic Gun Assault Rifle Ballistic Cannon Light Cannon Build | -11 -10 -10 ------- Run | Yrd Mat Sub Slots Evolved . | . . . Power . | . . . Propulsion . | . . . Utility . | . . . Weapon . | . . . Parts Attached 21 | 7 8 6 Power 2 | 1 1 . Engine 2 | 1 1 . Core . | . . . Reactor . | . . . Propulsion 5 | 2 2 1 Treads 2 | . 2 . Leg 2 | 2 . . Wheel 1 | . . 1 Hover . | . . . Flight . | . . . Utility 4 | 2 1 1 Device 2 | 1 . 1 Storage 2 | 1 1 . Processor . | . . . Hackware . | . . . Protection . | . . . Artifact . | . . . Weapon 10 | 2 4 4 Energy Gun . | . . . Energy Cannon . | . . . Ballistic Gun 5 | 2 2 1 Ballistic Cannon 5 | . 2 3 Launcher . | . . . Special Weapon . | . . . Impact Weapon . | . . . Slashing Weapon . | . . . Piercing Weapon . | . . . Special Melee Weapon . | . . . Unidentified Prototypes . | . . . Parts Lost 11 | . . 11 Power 1 | . . 1 Propulsion 2 | . . 2 Utility 2 | . . 2 Weapon 6 | . . 6 Highest Loss Streak 9 | . . 9 To Critical Strikes . | . . . Average Backups 11 | 4 11 13 Power . | . . 1 Propulsion 2 | 2 3 2 Utility 3 | 1 3 4 Weapon 4 | 1 3 5 Tool/Special . | . . . Unused Backups 10 | . 1 9 Power 1 | . . 1 Propulsion . | . . . Utility 5 | . 1 4 Weapon 4 | . . 4 Tool/Special . | . . . Average Slot Usage (%) 99 | . 100 97 Engine 13 | . 14 13 Treads 21 | . 19 26 Leg 6 | . 8 . Device 13 | . 14 12 Storage 14 | . 14 14 Ballistic Gun 13 | . 19 . Ballistic Cannon 14 | . 8 27 Peak Build Rating 10 | 7 9 10 Average Rating 8 | 5 8 9 On Entrance 5 | . 7 9 Naked Turns . | . . . Heaviest Build 34 | 13 34 34 Greatest Support 40 | 20 40 40 Greatest Overweight (x) 1 | . 1 1 Average Overweight (x) . | . . . Largest Inventory Capacity 15 | 8 15 15 Average Capacity 13 | 7 13 15 Most Carried 15 | 7 15 15 Average Carried 11 | 4 11 13 Final Capacity 15 | 8 15 15 Final Carried 15 | 6 15 9 Class Distribution -------------------- 100% | Mutant Dominant Class ---------------- Mutant | -10/Materials Mutant | -10/Subcaves Resources | -11 -10 -10 ----------- Run | Yrd Mat Sub Matter Collected 866 | 295 393 178 Remotely . | . . . Salvage Created 622 | 124 380 118 Parts 30 | 13 13 4 Haulers Intercepted . | . . . Recyclers Shooed 2 | . 2 . Parts Field Recycled . | . . . Retrieved Matter . | . . . Parts Self-Destructed . | . . . Prevented . | . . . Kills | -11 -10 -10 ------- Run | Yrd Mat Sub Combat Hostiles Destroyed 12 | . 6 6 Guns 5 | . 5 . Cannons 7 | . 1 6 Classes Destroyed 6 | 2 4 . Worker 1 | 1 . . Tunneler 5 | 5 . . Recycler 1 | . 1 . Watcher 3 | . 3 . Grunt 5 | . 5 . Subdweller 7 | . 1 6 Best Kill Streak 5 | 5 3 3 Combat Bots Only 3 | . 2 3 Max Kills in Single Turn 2 | 2 1 1 Gunslinging . | . . . Exploded . | . . . Melee . | . . . Uniques/NPCs Destroyed . | . . . Combat | -11 -10 -10 -------- Run | Yrd Mat Sub Hostile Shots Fired 102 | . 30 72 Missed 35 | . 14 21 Hits 67 | . 16 51 Projectile 67 | . 16 51 AOE 4 | . . 4 Damage Taken 1587 | . 246 1341 Core 267 | . 32 235 Absorbed by Shields . | . . . Core Remaining (%) 100 | 100 . . Volleys Fired 98 | 13 40 45 Largest 2 | 2 2 2 Hottest 60 | 40 60 60 Shots Fired 194 | 26 78 90 Gun 92 | 26 62 4 Cannon 102 | . 16 86 Launcher . | . . . Special . | . . . Kinetic 194 | 26 78 90 Thermal . | . . . Explosive . | . . . Electromagnetic . | . . . Robot Hit Streak 10 | 5 6 10 Robot Miss Streak 3 | 3 3 2 Penetration Max . | . . . Secondary Targets 2 | . 2 . Max Gunslinging Chain 1 | . 1 . Shots Hit Robots 105 | 15 40 50 Core Hits 38 | 6 19 13 Critical Kills . | . . . Critical Parts Destroyed 1 | 1 . . Critical Strikes 2 | 1 . 1 Destroy 1 | 1 . . Blast 1 | . . 1 Melee Attacks . | . . . Impact . | . . . Slashing . | . . . Piercing . | . . . Sneak Attacks . | . . . Combat Hostiles . | . . . Follow-up Attacks . | . . . Damage Inflicted 1642 | 191 550 901 Guns 694 | 191 484 19 Cannons 948 | . 66 882 Explosions . | . . . Melee . | . . . Ramming . | . . . Kinetic 1642 | 191 550 901 Thermal . | . . . Explosive . | . . . Electromagnetic . | . . . Impact . | . . . Slashing . | . . . Piercing . | . . . Highest Corruption . | . . . Average Corruption . | . . . Corruption Purged . | . . . Corruption Blocked . | . . . Overload Shots . | . . . Overflow Damage . | . . . Projectiles . | . . . Explosions . | . . . Melee . | . . . Knockbacks 5 | . . 5 Impact . | . . . Kinetic 5 | . . 5 Secondary . | . . . Self-Inflicted Damage . | . . . Shots . | . . . Rammed . | . . . Targets Rammed . | . . . Kicked . | . . . Crushed . | . . . Highest Temperature 18 | . 18 . Average Temperature 6 | . 6 . Received Heat Transfer 276 | . 117 159 Siege Activations . | . . . Martial Activations . | . . . Shielding Activations . | . . . Robots Disrupted . | . . . Combat Hostiles . | . . . Robots Corrupted . | . . . Combat Hostiles . | . . . Parts Fried . | . . . Impact Corruptions . | . . . Robots Melted . | . . . Combat Hostiles . | . . . Parts Melted . | . . . Heat Transferred . | . . . Parts Sabotaged . | . . . Parts Stolen . | . . . Parts Stripped . | . . . Power Chain Reactions . | . . . Alert | -11 -10 -10 ------- Run | Yrd Mat Sub Maximum Alert Level . | . . . Low Security (%) 100 | 100 100 . Level 1 . | . . . Level 2 . | . . . Level 3 . | . . . Level 4 . | . . . Level 5 . | . . . High Security . | . . . Max Security . | . . . Peak Influence 50 | 15 50 . Initial 3 | . 3 . Average 6 | 3 6 . Influence Increases 211 | 30 181 . Destroy 0b10 Robot/C 100 | . 100 . Destroy 0b10 Robot/NC 50 | 30 20 . Destroy Leader 36 | . 36 . Successful Hack 25 | . 25 . Influence Decreases 211 | 25 186 . Entered New Map 2 | . 2 . Time Decay 209 | 25 184 . Squads Dispatched 1 | . 1 . Investigation 1 | . 1 . Extermination . | . . . Reinforcement . | . . . Assault . | . . . Garrison . | . . . Intercept . | . . . Searches Triggered . | . . . Construction Impeded . | . . . Haulers Reinforced . | . . . Active Scanning Responses . | . . . Cargo Convoy Interrupts . | . . . Stealth | -11 -10 -10 --------- Run | Yrd Mat Sub Distress Signals . | . . . Communications Jammed . | . . . Distress Signals . | . . . Times Spotted 23 | . 12 11 Peak Tracking Total 5 | . 2 5 Tactical Retreats . | . . . Traps | -11 -10 -10 ------- Run | Yrd Mat Sub Traps Triggered 4 | . 4 . Indirectly . | . . . Trap Hack Attempts . | . . . Triggered . | . . . Disarmed . | . . . Reprogrammed . | . . . Reused . | . . . Traps Extracted . | . . . Installed . | . . . Triggered . | . . . Machines | -11 -10 -10 ---------- Run | Yrd Mat Sub Machines Disabled 1 | . . 1 Max in Single Turn 1 | . . 1 Machines Repaired . | . . . Machines Dismantled . | . . . Machines Sabotaged . | . . . Overloaded Fab Kills . | . . . Hacking | -11 -10 -10 --------- Run | Yrd Mat Sub Machines Accessed 7 | . 6 1 Terminals 6 | . 6 . Fabricators . | . . . Repair Stations . | . . . Recycling Units . | . . . Scanalyzers . | . . . Garrison Access . | . . . Total Hacks 14 | . 13 1 Successful 12 | . 11 1 Failed 2 | . 2 . Catastrophic . | . . . Database Lockouts . | . . . Manual 13 | . 13 . Terminals 13 | . 13 . Fabricators . | . . . Repair Stations . | . . . Recycling Units . | . . . Scanalyzers . | . . . Garrison Access . | . . . Terminal Hacks 3 | . 2 1 Prototype ID Bank 2 | . 2 . Proto ID Catalog 1 | . . 1 Fabricator Hacks . | . . . Repair Station Hacks . | . . . Recycling Unit Hacks . | . . . Scanalyzer . | . . . Garrison Access Hacks . | . . . Unauthorized Hacks 9 | . 9 . Terminals 9 | . 9 . Botnet 4 | . 4 . Skim 5 | . 5 . Fabricators . | . . . Repair Stations . | . . . Recycling Units . | . . . Scanalyzers . | . . . Garrison Access . | . . . Data Cores Recovered . | . . . Used . | . . . Hacking Detections 2 | . 2 . Full Trace Events . | . . . Feedback Events . | . . . Feedback Blocked . | . . . Robot Schematics Acquired . | . . . Robots Built . | . . . Authchips . | . . . Time . | . . . Total Robot Build Rating . | . . . Part Schematics Acquired . | . . . Parts Built . | . . . Authchips . | . . . Time . | . . . Total Part Build Rating . | . . . Parts Repaired . | . . . Time . | . . . Parts Recycled . | . . . Recycled Matter . | . . . Retrieved Matter . | . . . Retrieved Components . | . . . Parts Scanalyzed . | . . . Part Schematics Acquired . | . . . Parts Damaged . | . . . Bothacking | -11 -10 -10 ------------ Run | Yrd Mat Sub Used RIF Installer . | . . . Robots Hacked . | . . . Non-combat . | . . . Combat . | . . . Robot Hacks Applied . | . . . Relay Couplers Released . | . . . Fabnet Peak Effective % . | . . . Robots Rewired . | . . . Allies Hacked . | . . . Hacks Repelled . | . . . Allies | -11 -10 -10 -------- Run | Yrd Mat Sub Total Allies . | . . . Largest Group . | . . . Highest-Rated Group . | . . . Highest-Rated Ally . | . . . Total Orders . | . . . Ally Attacks . | . . . Total Damage . | . . . Kills . | . . . Allies Corrupted . | . . . Allies Melted . | . . . Intel | -11 -10 -10 ------- Run | Yrd Mat Sub Active Infowar (turns) 2002 | 15 1409 578 Seismic 2002 | 15 1409 578 Robot Analysis Total . | . . . Derelict Logs Recovered 3 | . . 3 Drone Launches . | . . . Drone Recoveries . | . . . Exploration | -11 -10 -10 ------------- Run | Yrd Mat Sub Turns Passed 2167 | 114 1409 644 Spaces Moved 1122 | 55 753 314 Core 21 | 21 . . Treads 845 | . 534 311 Legs 253 | 34 219 . Wheels 3 | . . 3 Hover . | . . . Flight . | . . . Fastest Speed 50 | 50 120 95 Average Speed 150 | 93 151 159 Slowest Speed 190 | 120 190 160 Overloaded Moves . | . . . Propulsion Burnouts . | . . . Robots Hopped . | . . . Potential Cave-ins . | . . . Cave-ins Triggered . | . . . Exploration Rate (%) 37 | 3 94 16 Regions Visited 2 Branch Regions 1 Pre-discovered Areas 1 | . . 1 Known Exits Taken . | . . . Unknown Exits Taken 2 | 1 1 . Scrap Searched 2 | . . 2 Spaces Dug . | . . . Terrain Destroyed 2 | . . 2 Melee . | . . . Projectile 2 | . . 2 AOE . | . . . Terrain Rammed . | . . . Walls Destroyed . | . . . Machines Disabled . | . . . Actions | -11 -10 -10 --------- Run | Yrd Mat Sub Total 1407 | 90 948 369 Wait 127 | 5 122 . Move 1120 | 54 752 314 Hop . | . . . Pick Up 31 | 11 18 2 Fast Attach 2 | 2 . . Attach 13 | 5 2 6 Detach . | . . . Swap 7 | . 7 . Drop 9 | . 7 2 Fire 98 | 13 40 45 Melee . | . . . Ram . | . . . Kick . | . . . Crush . | . . . Escape Stasis . | . . . Rewire . | . . . Trap . | . . . Miscellaneous . | . . . Route ------- -11/Scrapyard -10/Materials (discovered 5 exits: [*Mat x3] / [*Min] / *Sub) -10/Subcaves (discovered 1 exit: *Mat) History --------- Turn | Location | Event 13 | -11/Scrapyard | Discovered new exit (range 15) 115 | -11/Scrapyard | Entered Materials 311 | -10/Materials | Build established: Mutant 619 | -10/Materials | Discovered new exit (range 11) 649 | -10/Materials | Discovered new exit (range 11) 716 | -10/Materials | Discovered new exit (range 14) 915 | -10/Materials | Derelicts attacked the area 920 | -10/Materials | Learned 4 Subcaves zone layouts 1057 | -10/Materials | Discovered new exit (range 7) 1514 | -10/Materials | Discovered new exit (range 6) 1524 | -10/Materials | Entered Subcaves 1528 | -10/Subcaves | Learned location of Recycling (-9) 1537 | -10/Subcaves | Identified exit to Materials 1635 | -10/Subcaves | Visited 4L-MR0's lab 1653 | -10/Subcaves | Found Gun Armor 1762 | -10/Subcaves | Disturbed a concealed Subdweller 1832 | -10/Subcaves | Ambushed by Subdwellers from Twisted Machinery 2096 | -10/Subcaves | A Subdweller sparked back to life 2110 | -10/Subcaves | Ambushed by Subdweller buried in earth 2150 | -10/Subcaves | Core integrity fell below 50% 2165 | -10/Subcaves | Core integrity fell below 20% 2168 | -10/Subcaves | Destroyed by 0W-ZJH(R) with Subdweller Laser Last Messages --------------- 01926_ Subatomizers dissect the Sub. Optics. 01933_ Acquired 3 matter. 02096_ AP-U4Q(R) creaks and sparks as it begins to move. 02105_ ZE-56W(R) Sub. Optics blasted off. 02111_ VG-W0Q(R): "ARGHSUB!" 02111_ ZE-56W(R) destroyed. 02115_ Seismic Detector destroyed. 02117_ VG-W0Q(R) knocked back. 02121_ OR-DC7(R) affixes Scrap Shield Fragment to Scrap Shield. 02122_ Lgt. Treads destroyed. 02123_ VG-W0Q(R) destroyed. 02126_ OR-DC7(R) destroyed. 02137_ 1H-N3B(R) affixes Scrap Shield Fragment to Scrap Shield. 02141_ Lgt. Cannon destroyed. 02142_ Lgt. Treads destroyed. 02145_ Lgt. Cannon destroyed. 02151_ Imp. Ion Engine destroyed. 02159_ O9-D41(R) knocked back. 02164_ Lgt. Cannon destroyed. 02164_ Sub. Machine Gun destroyed. Map ----- +----------------------------------------------------+ | ??????????????????????????????????????????????#""" | | ??????????????????????????????????????????????#### | | ?????????????????????????????????????????????????? | | ?????????????????????????????????????????????????# | | ?????????????????????????????????????????????????# | | ????????????????????????????????????????????###??# | | ??????????????????????????###??????????###### #??# | | ???????????????????????#### #?????????## #### | | ???????????????????????# #????????## ## " | | ????????????????????????# #????##### | | ????????????????????????## ###### | | ?????????????????????????## ## # # ## | | ?????????????????????????## #### | | ????????????????????????## #??##### #### | | ????????????????????????# # # #?????###??## | | ????????????????????????# #####??????????## | | ????????????????????????# #??????????????# | | ????????????????????????## ####??????????????### | | ?????????????????????????# #?##????????????????? | | ???????????????????????### ### ##???????????????? | | ???????????? ?????????# ; ###?????????????? | | ???????????# ??????# ##????????????? | | ????????????# #??## #????????????? | | ????????????# ; ;# ####????????????? | | ????????????# % % ;;; #??????????????? | | ????????????# ! <@ #??????????????? | | ????????????# %= #??????????????? | | ???????????< %%!% ##??????????????? | | ??????????? RR& R &%& #???????????????? | | ??????????? %%R% ;;;;#; %* ###???????????????? | | ???????????? <% < # ###;; %##?????????????????? | | ???????????? < % ?###??######??????????????????? | | ?????????????# ???????????????????????????????? | | ?????????????# ????????????????????????????????? | | ?????????????###?????????????????????????????????? | | ?????????????????????????????????????????????????? | | ?????????????????????????????????????????????????? | | ?????????????????????????????????????????????????? | | ?????????????????????????????????????????????????? | | ?????????????????????????????????????????????????? | | ?????????????????????????????????????????????????? | | ?????????????????????????????????????????????????? | | ?????????????????????????????????????????????????? | | ?????????????????????????????????????????????????? | | ?????????????????????????????????????????????????? | | ?????????????????????????????????????????????????? | | ?????????????????????????????????????????????????? | | ?????????????????????????????????????????????????? | | ?????????????????????????????????????????????????? | | ?????????????????????????????????????????????????? | +----------------------------------------------------+ Best States ------------- Heat Dissipation 25 Energy Generation 12 Energy Capacity 265 Matter Stores 300 Matter Capacity 300 Sight Range 16 Terrain Scan Density 10 Evasion (%) 55 Recoil Reduction 2 Item Schematics ----------------- None Robot Schematics ------------------ None Fabricated ------------ Nothing Repaired ---------- Nothing Alien Tech Used ----------------- None Achievements -------------- None Challenges ------------ None Game ------ Seed JammingDisassembledJetlance Manual? 0 Play Time 00:12:00 Cumulative 112.6 hours Start 2025.08.01 @ 17:29:26 End 2025.08.01 @ 17:41:16 Sessions 1 Manual Loads 0 Difficulty Rogue Special Mode None Game No. 176 Rogue 176 Adventurer 0 Explorer 0 Win Type - Total 1 Types 1/0/0/0/0/0/0/0/0/0 Lore% 67 Gallery% 58 Achievement% 51 Wizard Run 0 Options --------- Layout 0 ASCII 0 Keyboard 0 Movement Mouse Keybinds 0 Fullscreen 1 Font 16/SmallcapsGlow Map View 75x55 Zoom Use 0% Tactical HUD 1 Map Filters NONE Filters NONE Steam 1 RUN: 452bf34b-f2e4-4847-8643-c7e43b7759f5